fUSD/lending_fUSD_20260601
["ID","MTS","AMOUNT","RATE_DAILY","PERIOD"]
[423681591,1780301441000,-187.13,0.0001033,2]
[423681593,1780301441000,-250.0,0.00010333,2]
[423681594,1780301441000,-250.0,0.00010338,2]
[423681602,1780301441000,-500.0,0.00010529,2]
[423681598,1780301441000,-3397.4721477,0.0001042,2]
[423681599,1780301441000,-204952.3338392,0.0001042,2]
[423681597,1780301441000,-131947.3809981,0.0001042,2]
[423681589,1780301441000,-4000.0,0.00010278,2]
[423681600,1780301441000,-3669.0413519,0.0001042,2]
[423681606,1780301441000,-164.88258883,0.00010551,2]
[423681601,1780301441000,-4000.0,0.00010529,2]
[423681603,1780301441000,-150.0,0.00010551,2]
[423681596,1780301441000,-6049.48600987,0.00010412,2]
[423681581,1780301441000,-168.48,0.000101,2]
[423681575,1780301441000,-2000.0,9.991e-05,2]
[423681590,1780301441000,-300.25,0.00010307,2]
[423681561,1780301441000,-150.0,9.391e-05,2]
[423681560,1780301441000,-1441841.48468589,9.299e-05,2]
[423681563,1780301441000,-170.4470663,9.394e-05,2]
[423681562,1780301441000,-1014.1534628,9.394e-05,2]
[423681564,1780301441000,-933.69403119,9.398e-05,2]
[423681565,1780301441000,-166.07,9.411e-05,2]
[423681566,1780301441000,-500.0,9.483e-05,2]
[423681568,1780301441000,-168.48,9.573e-05,2]
[423681579,1780301441000,-4000.0,0.00010027,2]
[423681567,1780301441000,-150.0,9.484e-05,2]
[423681572,1780301441000,-415.36,9.688e-05,2]
[423681573,1780301441000,-26554.94544284,9.8e-05,2]
[423681570,1780301441000,-160.60579098,9.58e-05,2]
[423681571,1780301441000,-166.07,9.64e-05,2]
[423681574,1780301441000,-187.13,9.838e-05,2]
[423681576,1780301441000,-274.98166956,0.0001,2]
[423681578,1780301441000,-515.81956451,0.0001,2]
[423681577,1780301441000,-163.58,0.0001,2]
[423681569,1780301441000,-154.0,9.577e-05,2]
[423681605,1780301441000,-150.0,0.00010551,2]
[423681619,1780301441000,-500.0,0.00010551,2]
[423681610,1780301441000,-208.49589346,0.00010551,2]
[423681635,1780301441000,-500.0,0.00010685,2]
[423681637,1780301441000,-500.0,0.00010685,2]
[423681638,1780301441000,-500.0,0.00010685,2]
[423681640,1780301441000,-245.69706371,0.00010685,2]
[423681639,1780301441000,-500.0,0.00010685,2]
[423681643,1780301441000,-500.0,0.00010685,2]
[423681642,1780301441000,-500.0,0.00010685,2]
[423681644,1780301441000,-500.0,0.00010685,2]
[423681641,1780301441000,-500.0,0.00010685,2]
[423681646,1780301441000,-500.0,0.00010685,2]
[423681647,1780301441000,-500.0,0.00010685,2]
[423681651,1780301441000,-500.0,0.00010685,2]
[423681649,1780301441000,-500.0,0.00010685,2]
[423681648,1780301441000,-500.0,0.00010685,2]
[423681652,1780301441000,-162.97877955,0.00010685,2]
[423681650,1780301441000,-500.0,0.00010685,2]
[423681608,1780301441000,-150.0,0.00010551,2]
[423681636,1780301441000,-500.0,0.00010685,2]
[423681634,1780301441000,-500.0,0.00010685,2]
[423681645,1780301441000,-500.0,0.00010685,2]
[423681633,1780301441000,-500.0,0.00010685,2]
[423681611,1780301441000,-500.0,0.00010551,2]
[423681632,1780301441000,-500.0,0.00010685,2]
[423681612,1780301441000,-150.0,0.00010551,2]
[423681615,1780301441000,-150.0,0.00010551,2]
[423681613,1780301441000,-500.0,0.00010551,2]
[423681618,1780301441000,-193.97666921,0.00010551,2]
[423681620,1780301441000,-500.0,0.00010551,2]
[423681623,1780301441000,-534.04255896,0.00010551,2]
[423681624,1780301441000,-180.15,0.00010626,2]
[423681617,1780301441000,-500.0,0.00010551,2]
[423681621,1780301441000,-500.0,0.00010551,2]
[423681625,1780301441000,-168.48,0.00010627,2]
[423681627,1780301441000,-500.0,0.00010685,2]
[423681626,1780301441000,-500.0,0.00010685,2]
[423681631,1780301441000,-500.0,0.00010685,2]
[423681630,1780301441000,-500.0,0.00010685,2]
[423681628,1780301441000,-202.68518386,0.00010685,2]
[423681622,1780301441000,-500.0,0.00010551,2]
[423681629,1780301441000,-500.0,0.00010685,2]
[423681691,1780301442000,-500.0,0.00010825,2]
[423681695,1780301442000,-500.0,0.00010825,2]
[423681692,1780301442000,-500.0,0.00010825,2]
[423681693,1780301442000,-500.0,0.00010825,2]
[423681690,1780301442000,-500.0,0.00010825,2]
[423681687,1780301442000,-500.0,0.00010803,2]
[423681688,1780301442000,-187.13,0.00010822,2]
[423681686,1780301442000,-8695.87123917,0.00010793,2]
[423681689,1780301442000,-500.0,0.00010825,2]
[423681694,1780301442000,-500.0,0.00010825,2]
[423681685,1780301442000,-4000.0,0.00010779,2]
[423681684,1780301442000,-166.90124495,0.00010772,2]
[423681698,1780301442000,-500.0,0.00010825,2]
[423681707,1780301442000,-523.13674882,0.00010958,3]
[423681701,1780301442000,-179.15137862,0.00010825,2]
[423681700,1780301442000,-500.0,0.00010825,2]
[423681699,1780301442000,-500.0,0.00010825,2]
[423681696,1780301442000,-500.0,0.00010825,2]
[423681704,1780301442000,-168506.6731074,0.00010826,2]
[423681703,1780301442000,-16128.6251237,0.00010826,2]
[423681705,1780301442000,-415.36,0.00010899,2]
[423681706,1780301442000,-500.0,0.00010958,2]
[423681708,1780301442000,-500.0,0.00010958,2]
[423681709,1780301442000,-500.0,0.00010958,3]
[423681713,1780301442000,-500.0,0.00010958,7]
[423681683,1780301442000,-460.0,0.00010685,2]
[423681702,1780301442000,-309077.2588633,0.00010826,2]
[423681680,1780301442000,-446.0,0.00010685,2]
[423681662,1780301442000,-446.0,0.00010685,2]
[423681682,1780301442000,-446.0,0.00010685,2]
[423681653,1780301442000,-210.60640966,0.00010685,2]
[423681654,1780301442000,-500.0,0.00010685,2]
[423681655,1780301442000,-500.0,0.00010685,2]
[423681657,1780301442000,-500.0,0.00010685,2]
[423681656,1780301442000,-500.0,0.00010685,2]
[423681658,1780301442000,-500.0,0.00010685,2]
[423681659,1780301442000,-446.0,0.00010685,2]
[423681661,1780301442000,-446.0,0.00010685,2]
[423681663,1780301442000,-446.0,0.00010685,2]
[423681710,1780301442000,-500.0,0.00010958,4]
[423681665,1780301442000,-446.0,0.00010685,2]
[423681660,1780301442000,-408.67132594,0.00010685,2]
[423681664,1780301442000,-446.0,0.00010685,2]
[423681668,1780301442000,-446.0,0.00010685,2]
[423681666,1780301442000,-446.0,0.00010685,2]
[423681670,1780301442000,-446.0,0.00010685,2]
[423681669,1780301442000,-446.0,0.00010685,2]
[423681667,1780301442000,-446.0,0.00010685,2]
[423681671,1780301442000,-446.0,0.00010685,2]
[423681672,1780301442000,-446.0,0.00010685,2]
[423681673,1780301442000,-446.0,0.00010685,2]
[423681675,1780301442000,-446.0,0.00010685,2]
[423681676,1780301442000,-446.0,0.00010685,2]
[423681677,1780301442000,-446.0,0.00010685,2]
[423681674,1780301442000,-446.0,0.00010685,2]
[423681678,1780301442000,-446.0,0.00010685,2]
[423681681,1780301442000,-446.0,0.00010685,2]
[423681679,1780301442000,-446.0,0.00010685,2]
[423681711,1780301442000,-500.0,0.00010958,5]
[423681697,1780301442000,-500.0,0.00010825,2]
[423681714,1780301442000,-500.0,0.00010958,8]
[423681748,1780301442000,-500.0,0.00011899,2]
[423681749,1780301442000,-250.0,0.0001203,2]
[423681751,1780301442000,-415.36,0.0001211,2]
[423681746,1780301442000,-171.0,0.00011784,2]
[423681747,1780301442000,-187.13,0.00011806,2]
[423681750,1780301442000,-40532.18,0.00012055,2]
[423681754,1780301442000,-187.13,0.00012298,2]
[423681756,1780301442000,-2130.19204081,0.00012329,2]
[423681755,1780301442000,-242.11,0.00012329,2]
[423681752,1780301442000,-500.0,0.00012173,2]
[423681753,1780301442000,-26905.0,0.00012185,2]
[423681758,1780301442000,-3292.0,0.00012374,2]
[423681759,1780301442000,-736.0,0.00012376,2]
[423681760,1780301442000,-65866.80019165,0.00012407,2]
[423681763,1780301442000,-2000.0,0.00012489,2]
[423681762,1780301442000,-500.0,0.00012447,2]
[423681761,1780301442000,-78111.39343958,0.00012407,2]
[423681765,1780301442000,-179.7619397,0.0001261,2]
[423681767,1780301442000,-500.0,0.00012721,2]
[423681764,1780301442000,-218.33,0.00012519,2]
[423681766,1780301442000,-617.88,0.00012634,2]
[423681768,1780301442000,-187.13,0.0001279,2]
[423681771,1780301442000,-1828.57687883,0.00012926,2]
[423681769,1780301442000,-166.90124495,0.00012911,2]
[423681772,1780301442000,-2519.27914425,0.00012926,2]
[423681770,1780301442000,-9421.02189187,0.00012926,2]
[423681712,1780301442000,-500.0,0.00010958,6]
[423681745,1780301442000,-78111.39343958,0.00011784,2]
[423681741,1780301442000,-500.0,0.00011625,2]
[423681757,1780301442000,-2130.19204083,0.00012329,2]
[423681742,1780301442000,-8618.50640152,0.000117,2]
[423681744,1780301442000,-65866.80019165,0.00011784,2]
[423681716,1780301442000,-500.0,0.00010958,10]
[423681717,1780301442000,-150.0,0.00010959,2]
[423681719,1780301442000,-4548.42,0.00010959,2]
[423681718,1780301442000,-150.0,0.00010959,2]
[423681720,1780301442000,-152.0,0.00010976,7]
[423681721,1780301442000,-4000.0,0.0001103,2]
[423681722,1780301442000,-164.48962134,0.00011061,2]
[423681726,1780301442000,-65866.80019165,0.00011099,2]
[423681723,1780301442000,-500.0,0.00011077,2]
[423681725,1780301442000,-65866.80019165,0.00011099,2]
[423681727,1780301442000,-78111.39343964,0.00011099,2]
[423681724,1780301442000,-65866.80019166,0.00011099,2]
[423681728,1780301442000,-78111.39343958,0.00011099,2]
[423681715,1780301442000,-500.0,0.00010958,9]
[423681739,1780301442000,-513.4,0.000115,2]
[423681730,1780301442000,-168.48,0.00011153,2]
[423681731,1780301442000,-65866.80019165,0.00011161,2]
[423681732,1780301442000,-78111.39343958,0.00011161,2]
[423681735,1780301442000,-433.0,0.0001125,2]
[423681733,1780301442000,-2000.0,0.0001124,2]
[423681737,1780301442000,-500.0,0.00011351,2]
[423681738,1780301442000,-218.33,0.00011381,2]
[423681736,1780301442000,-187.13,0.00011314,2]
[423681729,1780301442000,-78111.39343958,0.00011099,2]
[423681734,1780301442000,-2351.0,0.00011249,2]
[423681740,1780301442000,-160.0,0.00011607,2]
[423681743,1780301442000,-215.65015035,0.00011746,2]
[423681817,1780301443000,-166.68,0.00013469,2]
[423681820,1780301443000,-150.0,0.00013488,2]
[423681806,1780301443000,-500.0,0.00013425,2]
[423681824,1780301443000,-150.0,0.00013488,2]
[423681821,1780301443000,-150.0,0.00013488,2]
[423681818,1780301443000,-150.0,0.00013488,2]
[423681811,1780301443000,-500.0,0.00013425,2]
[423681815,1780301443000,-500.0,0.00013425,2]
[423681812,1780301443000,-500.0,0.00013425,2]
[423681816,1780301443000,-472.95223692,0.00013425,2]
[423681813,1780301443000,-500.0,0.00013425,2]
[423681819,1780301443000,-150.0,0.00013488,2]
[423681814,1780301443000,-500.0,0.00013425,2]
[423681822,1780301443000,-150.0,0.00013488,2]
[423681830,1780301443000,-323.50187327,0.00013503,2]
[423681828,1780301443000,-323.50187327,0.00013488,2]
[423681825,1780301443000,-150.0,0.00013488,2]
[423681832,1780301443000,-323.50187327,0.00013518,2]
[423681829,1780301443000,-150.0,0.00013488,2]
[423681827,1780301443000,-150.0,0.00013488,2]
[423681831,1780301443000,-150.0,0.00013511,2]
[423681833,1780301443000,-150.0,0.00013524,2]
[423681836,1780301443000,-323.50187327,0.00013533,2]
[423681837,1780301443000,-150.0,0.00013534,2]
[423681834,1780301443000,-150.0,0.00013532,2]
[423681835,1780301443000,-150.0,0.00013533,2]
[423681838,1780301443000,-500.0,0.00013542,2]
[423681826,1780301443000,-150.0,0.00013488,2]
[423681808,1780301443000,-500.0,0.00013425,2]
[423681839,1780301443000,-323.50187327,0.00013548,2]
[423681809,1780301443000,-500.0,0.00013425,2]
[423681775,1780301443000,-499386.7819,0.00013,2]
[423681774,1780301443000,-500.0,0.00012995,2]
[423681773,1780301443000,-515.81956451,0.0001299,2]
[423681776,1780301443000,-2010.8172016,0.00013013,2]
[423681778,1780301443000,-65866.80019165,0.0001303,2]
[423681780,1780301443000,-2015.0,0.00013033,5]
[423681779,1780301443000,-78111.39343958,0.0001303,2]
[423681777,1780301443000,-500.0,0.00013017,2]
[423681781,1780301443000,-161.38,0.00013185,2]
[423681782,1780301443000,-2130.19204081,0.00013219,2]
[423681784,1780301443000,-187.13,0.00013282,2]
[423681786,1780301443000,-236.21671476,0.00013343,2]
[423681783,1780301443000,-500.0,0.00013268,2]
[423681785,1780301443000,-415.36,0.00013321,2]
[423681788,1780301443000,-280.61209394,0.00013344,2]
[423681787,1780301443000,-1546.0,0.00013344,2]
[423681792,1780301443000,-151.0,0.00013344,2]
[423681789,1780301443000,-151.0,0.00013344,2]
[423681793,1780301443000,-151.0,0.00013344,2]
[423681805,1780301443000,-155.84466403,0.00013344,2]
[423681799,1780301443000,-153.0,0.00013344,2]
[423681795,1780301443000,-151.0,0.00013344,2]
[423681797,1780301443000,-151.0,0.00013344,2]
[423681804,1780301443000,-153.0,0.00013344,2]
[423681801,1780301443000,-153.0,0.00013344,2]
[423681803,1780301443000,-153.0,0.00013344,2]
[423681807,1780301443000,-500.0,0.00013425,2]
[423681810,1780301443000,-500.0,0.00013425,2]
[423681840,1780301443000,-150.0,0.00013557,2]
[423681791,1780301443000,-151.0,0.00013344,2]
[423681841,1780301443000,-150.0,0.00013559,2]
[423681879,1780301443000,-150.0,0.00013695,2]
[423681885,1780301443000,-542.52,0.00013698,2]
[423681883,1780301443000,-542.52,0.00013698,2]
[423681884,1780301443000,-542.52,0.00013698,2]
[423681881,1780301443000,-500.0,0.00013698,2]
[423681880,1780301443000,-631.69,0.00013698,2]
[423681882,1780301443000,-542.52,0.00013698,2]
[423681890,1780301443000,-542.52,0.00013698,2]
[423681886,1780301443000,-542.52,0.00013698,2]
[423681887,1780301443000,-542.52,0.00013698,2]
[423681889,1780301443000,-542.52,0.00013698,2]
[423681888,1780301443000,-542.52,0.00013698,2]
[423681903,1780301443000,-559.32,0.00013698,2]
[423681878,1780301443000,-323.50187327,0.00013684,2]
[423681892,1780301443000,-500.0,0.00013698,2]
[423681896,1780301443000,-559.32,0.00013698,2]
[423681891,1780301443000,-542.52,0.00013698,2]
[423681897,1780301443000,-559.32,0.00013698,2]
[423681894,1780301443000,-500.0,0.00013698,2]
[423681895,1780301443000,-498.43141485,0.00013698,2]
[423681898,1780301443000,-559.32,0.00013698,2]
[423681901,1780301443000,-559.32,0.00013698,2]
[423681902,1780301443000,-559.32,0.00013698,2]
[423681900,1780301443000,-559.32,0.00013698,2]
[423681899,1780301443000,-559.32,0.00013698,2]
[423681904,1780301443000,-559.32,0.00013698,2]
[423681905,1780301443000,-559.32,0.00013698,2]
[423681906,1780301443000,-500.0,0.00013698,2]
[423681893,1780301443000,-500.0,0.00013698,2]
[423681874,1780301443000,-323.50187327,0.00013669,2]
[423681843,1780301443000,-323.50187327,0.00013563,2]
[423681876,1780301443000,-150.0,0.00013672,2]
[423681842,1780301443000,-150.0,0.00013561,2]
[423681845,1780301443000,-150.0,0.00013578,2]
[423681844,1780301443000,-150.0,0.00013576,2]
[423681847,1780301443000,-150.0,0.0001358,2]
[423681846,1780301443000,-323.50187327,0.00013578,2]
[423681848,1780301443000,-323.50187327,0.00013594,2]
[423681849,1780301443000,-150.0,0.00013597,2]
[423681851,1780301443000,-500.0,0.00013599,2]
[423681855,1780301443000,-1252.0,0.00013612,2]
[423681857,1780301443000,-150.0,0.0001362,2]
[423681854,1780301443000,-323.50187327,0.00013609,2]
[423681852,1780301443000,-150.0,0.00013603,2]
[423681856,1780301443000,-4609.0,0.00013612,2]
[423681850,1780301443000,-2000.0,0.00013598,2]
[423681877,1780301443000,-150.0,0.00013675,2]
[423681858,1780301443000,-150.0,0.00013624,2]
[423681859,1780301443000,-323.50187327,0.00013624,2]
[423681875,1780301443000,-150.0,0.0001367,2]
[423681871,1780301443000,-218.33,0.00013657,2]
[423681870,1780301443000,-323.50187327,0.00013654,2]
[423681872,1780301443000,-150.0,0.00013664,2]
[423681868,1780301443000,-65866.80019165,0.00013654,2]
[423681869,1780301443000,-78111.39343958,0.00013654,2]
[423681866,1780301443000,-323.50187327,0.00013639,2]
[423681867,1780301443000,-150.0,0.00013649,2]
[423681862,1780301443000,-150.0,0.0001363,2]
[423681864,1780301443000,-150.0,0.00013634,2]
[423681861,1780301443000,-150.0,0.00013626,2]
[423681873,1780301443000,-150.0,0.00013669,2]
[423681953,1780301444000,-534.02,0.00013698,2]
[423681960,1780301444000,-534.02,0.00013698,2]
[423681955,1780301444000,-534.02,0.00013698,2]
[423681950,1780301444000,-500.0,0.00013698,2]
[423681952,1780301444000,-534.02,0.00013698,2]
[423681941,1780301444000,-500.0,0.00013698,2]
[423681943,1780301444000,-500.0,0.00013698,2]
[423681948,1780301444000,-500.0,0.00013698,2]
[423681954,1780301444000,-534.02,0.00013698,2]
[423681944,1780301444000,-500.0,0.00013698,2]
[423681957,1780301444000,-534.02,0.00013698,2]
[423681946,1780301444000,-500.0,0.00013698,2]
[423681959,1780301444000,-534.02,0.00013698,2]
[423681965,1780301444000,-534.02,0.00013698,2]
[423681961,1780301444000,-534.02,0.00013698,2]
[423681963,1780301444000,-534.02,0.00013698,2]
[423681962,1780301444000,-500.0,0.00013698,2]
[423681968,1780301444000,-500.0,0.00013698,2]
[423681967,1780301444000,-534.02,0.00013698,2]
[423681964,1780301444000,-500.0,0.00013698,2]
[423681966,1780301444000,-534.02,0.00013698,2]
[423681971,1780301444000,-534.02,0.00013698,2]
[423681970,1780301444000,-500.0,0.00013698,2]
[423681969,1780301444000,-534.02,0.00013698,2]
[423681972,1780301444000,-500.0,0.00013698,2]
[423681973,1780301444000,-500.0,0.00013698,2]
[423681939,1780301444000,-500.0,0.00013698,2]
[423681956,1780301444000,-534.02,0.00013698,2]
[423681937,1780301444000,-500.0,0.00013698,2]
[423681919,1780301444000,-500.0,0.00013698,2]
[423681936,1780301444000,-500.0,0.00013698,2]
[423681908,1780301444000,-500.0,0.00013698,2]
[423681907,1780301444000,-500.0,0.00013698,2]
[423681909,1780301444000,-500.0,0.00013698,2]
[423681911,1780301444000,-500.0,0.00013698,2]
[423681912,1780301444000,-500.0,0.00013698,2]
[423681913,1780301444000,-500.0,0.00013698,2]
[423681910,1780301444000,-500.0,0.00013698,2]
[423681914,1780301444000,-500.0,0.00013698,2]
[423681916,1780301444000,-500.0,0.00013698,2]
[423681915,1780301444000,-500.0,0.00013698,2]
[423681918,1780301444000,-500.0,0.00013698,2]
[423681917,1780301444000,-500.0,0.00013698,2]
[423681920,1780301444000,-500.0,0.00013698,2]
[423681935,1780301444000,-500.0,0.00013698,2]
[423681921,1780301444000,-500.0,0.00013698,2]
[423681974,1780301444000,-500.0,0.00013698,2]
[423681924,1780301444000,-500.0,0.00013698,2]
[423681925,1780301444000,-500.0,0.00013698,2]
[423681923,1780301444000,-500.0,0.00013698,2]
[423681926,1780301444000,-500.0,0.00013698,2]
[423681927,1780301444000,-500.0,0.00013698,2]
[423681929,1780301444000,-500.0,0.00013698,2]
[423681930,1780301444000,-500.0,0.00013698,2]
[423681928,1780301444000,-500.0,0.00013698,2]
[423681931,1780301444000,-500.0,0.00013698,2]
[423681932,1780301444000,-500.0,0.00013698,2]
[423681934,1780301444000,-558.87178234,0.00013698,2]
[423681933,1780301444000,-500.0,0.00013698,2]
[423681922,1780301444000,-524.1016374,0.00013698,2]
[423681975,1780301444000,-500.0,0.00013698,2]
[423681958,1780301444000,-534.02,0.00013698,2]
[423681977,1780301444000,-500.0,0.00013698,2]
[423682023,1780301444000,-4749.15,0.00013698,2]
[423682024,1780301444000,-4749.15,0.00013698,2]
[423682025,1780301444000,-500.0,0.00013698,2]
[423682027,1780301444000,-500.0,0.00013698,2]
[423682029,1780301444000,-500.0,0.00013698,2]
[423682026,1780301444000,-500.0,0.00013698,2]
[423682028,1780301444000,-500.0,0.00013698,2]
[423682030,1780301444000,-500.0,0.00013698,2]
[423682033,1780301444000,-500.0,0.00013698,2]
[423682034,1780301444000,-500.0,0.00013698,2]
[423682032,1780301444000,-500.0,0.00013698,2]
[423682031,1780301444000,-500.0,0.00013698,2]
[423682036,1780301444000,-500.0,0.00013698,2]
[423682037,1780301444000,-500.0,0.00013698,2]
[423682041,1780301444000,-500.0,0.00013698,2]
[423682042,1780301444000,-500.0,0.00013698,2]
[423682038,1780301444000,-500.0,0.00013698,2]
[423682043,1780301444000,-500.0,0.00013698,2]
[423682040,1780301444000,-500.0,0.00013698,2]
[423682039,1780301444000,-500.0,0.00013698,2]
[423682044,1780301444000,-500.0,0.00013698,2]
[423682045,1780301444000,-500.0,0.00013698,2]
[423682047,1780301444000,-500.0,0.00013698,2]
[423682048,1780301444000,-500.0,0.00013698,2]
[423682046,1780301444000,-500.0,0.00013698,2]
[423682049,1780301444000,-500.0,0.00013698,2]
[423682051,1780301444000,-500.0,0.00013698,2]
[423681978,1780301444000,-500.0,0.00013698,2]
[423682050,1780301444000,-500.0,0.00013698,2]
[423682022,1780301444000,-4749.15,0.00013698,2]
[423682021,1780301444000,-4749.15,0.00013698,2]
[423682035,1780301444000,-500.0,0.00013698,2]
[423682019,1780301444000,-4749.15,0.00013698,2]
[423681980,1780301444000,-500.0,0.00013698,2]
[423682018,1780301444000,-4749.15,0.00013698,2]
[423681976,1780301444000,-500.0,0.00013698,2]
[423681983,1780301444000,-500.0,0.00013698,2]
[423681985,1780301444000,-406.17605534,0.00013698,2]
[423681986,1780301444000,-500.0,0.00013698,2]
[423681987,1780301444000,-500.0,0.00013698,2]
[423681984,1780301444000,-500.0,0.00013698,2]
[423682000,1780301444000,-500.0,0.00013698,2]
[423681990,1780301444000,-500.0,0.00013698,2]
[423682004,1780301444000,-500.0,0.00013698,2]
[423682002,1780301444000,-500.0,0.00013698,2]
[423681994,1780301444000,-500.0,0.00013698,2]
[423681992,1780301444000,-500.0,0.00013698,2]
[423681998,1780301444000,-500.0,0.00013698,2]
[423681981,1780301444000,-500.0,0.00013698,2]
[423682009,1780301444000,-4749.15,0.00013698,2]
[423682020,1780301444000,-4749.15,0.00013698,2]
[423682016,1780301444000,-4749.15,0.00013698,2]
[423682015,1780301444000,-4749.15,0.00013698,2]
[423682017,1780301444000,-4749.15,0.00013698,2]
[423682014,1780301444000,-4749.15,0.00013698,2]
[423682012,1780301444000,-4749.15,0.00013698,2]
[423682013,1780301444000,-4749.15,0.00013698,2]
[423682006,1780301444000,-4749.15,0.00013698,2]
[423682007,1780301444000,-500.0,0.00013698,2]
[423682008,1780301444000,-4749.15,0.00013698,2]
[423682010,1780301444000,-4749.15,0.00013698,2]
[423682011,1780301444000,-4749.15,0.00013698,2]
[423682095,1780301445000,-500.0,0.00013698,2]
[423682094,1780301445000,-500.0,0.00013698,2]
[423682091,1780301445000,-500.0,0.00013698,2]
[423682090,1780301445000,-500.0,0.00013698,2]
[423682093,1780301445000,-500.0,0.00013698,2]
[423682086,1780301445000,-500.0,0.00013698,2]
[423682096,1780301445000,-215.82640677,0.00013698,2]
[423682089,1780301445000,-500.0,0.00013698,2]
[423682085,1780301445000,-500.0,0.00013698,2]
[423682088,1780301445000,-500.0,0.00013698,2]
[423682098,1780301445000,-504.07285355,0.00013698,2]
[423682087,1780301445000,-500.0,0.00013698,2]
[423682092,1780301445000,-500.0,0.00013698,2]
[423682099,1780301445000,-1767.48,0.00013698,2]
[423682104,1780301445000,-1767.48,0.00013698,2]
[423682101,1780301445000,-1767.48,0.00013698,2]
[423682100,1780301445000,-1767.48,0.00013698,2]
[423682103,1780301445000,-1767.48,0.00013698,2]
[423682115,1780301445000,-500.0,0.00013698,2]
[423682107,1780301445000,-1767.48,0.00013698,2]
[423682105,1780301445000,-1767.48,0.00013698,2]
[423682106,1780301445000,-1767.48,0.00013698,2]
[423682108,1780301445000,-1767.48,0.00013698,2]
[423682109,1780301445000,-1767.48,0.00013698,2]
[423682110,1780301445000,-1767.48,0.00013698,2]
[423682112,1780301445000,-1767.48,0.00013698,2]
[423682111,1780301445000,-1767.48,0.00013698,2]
[423682084,1780301445000,-500.0,0.00013698,2]
[423682102,1780301445000,-1767.48,0.00013698,2]
[423682083,1780301445000,-500.0,0.00013698,2]
[423682055,1780301445000,-500.0,0.00013698,2]
[423682079,1780301445000,-500.0,0.00013698,2]
[423682113,1780301445000,-1767.48,0.00013698,2]
[423682053,1780301445000,-500.0,0.00013698,2]
[423682052,1780301445000,-500.0,0.00013698,2]
[423682056,1780301445000,-500.0,0.00013698,2]
[423682054,1780301445000,-500.0,0.00013698,2]
[423682058,1780301445000,-500.0,0.00013698,2]
[423682057,1780301445000,-500.0,0.00013698,2]
[423682059,1780301445000,-500.0,0.00013698,2]
[423682062,1780301445000,-500.0,0.00013698,2]
[423682060,1780301445000,-500.0,0.00013698,2]
[423682061,1780301445000,-500.0,0.00013698,2]
[423682064,1780301445000,-500.0,0.00013698,2]
[423682063,1780301445000,-500.0,0.00013698,2]
[423682066,1780301445000,-500.0,0.00013698,2]
[423682068,1780301445000,-382.47010056,0.00013698,2]
[423682067,1780301445000,-500.0,0.00013698,2]
[423682065,1780301445000,-500.0,0.00013698,2]
[423682069,1780301445000,-500.0,0.00013698,2]
[423682070,1780301445000,-500.0,0.00013698,2]
[423682071,1780301445000,-500.0,0.00013698,2]
[423682074,1780301445000,-500.0,0.00013698,2]
[423682072,1780301445000,-500.0,0.00013698,2]